fUSD/lending_fUSD_20260118
["ID","MTS","AMOUNT","RATE_DAILY","PERIOD"]
[402548897,1768704698933,-500.0,0.00017808,2]
[402548898,1768704698943,-508.49,0.00017808,2]
[402548899,1768704698953,-500.0,0.00017808,2]
[402548900,1768704698964,-506.56,0.00017808,2]
[402548901,1768704698974,-500.0,0.00017808,2]
[402548902,1768704698983,-663.4,0.00017808,2]
[402548903,1768704698994,-500.0,0.00017808,2]
[402548904,1768704699004,-767.04,0.00017808,2]
[402548905,1768704699014,-523.30025418,0.00017808,2]
[402548906,1768704699024,-486.28230177,0.00017808,2]
[402548907,1768704699035,-500.0,0.00017808,2]
[402548908,1768704699046,-591.99,0.00017808,2]
[402548909,1768704699056,-500.0,0.00017808,2]
[402548910,1768704699066,-1071.78,0.00017808,2]
[402548911,1768704699077,-500.0,0.00017808,2]
[402548912,1768704699087,-500.0,0.00017808,2]
[402548913,1768704699097,-500.0,0.00017808,2]
[402548914,1768704699108,-500.0,0.00017808,2]
[402548915,1768704699117,-477.49917106,0.00017808,2]
[402548916,1768704699128,-500.0,0.00017808,2]
[402548917,1768704699139,-500.0,0.00017808,2]
[402548918,1768704699148,-500.0,0.00017808,2]
[402548919,1768704699158,-587.25,0.00017808,2]
[402548920,1768704699168,-502.19,0.00017808,2]
[402548921,1768704699177,-500.0,0.00017808,2]
[402548922,1768704699187,-500.0,0.00017808,2]
[402548923,1768704699196,-500.0,0.00017808,2]
[402548924,1768704699206,-500.0,0.00017808,2]
[402548925,1768704699216,-500.13,0.00017808,2]
[402548926,1768704699225,-500.0,0.00017808,2]
[402548927,1768704699234,-852.56,0.00017808,2]
[402548928,1768704699243,-500.0,0.00017808,2]
[402548929,1768704699252,-500.0,0.00017808,2]
[402548930,1768704699262,-1145.6,0.00017808,2]
[402548931,1768704699271,-934.87,0.00017808,2]
[402548932,1768704699281,-500.58,0.00017808,2]
[402548933,1768704699290,-570.09,0.00017808,2]
[402548934,1768704699299,-500.0,0.00017808,2]
[402548935,1768704699308,-500.0,0.00017808,2]
[402548936,1768704699318,-500.0,0.00017808,2]
[402548937,1768704699327,-500.0,0.00017808,2]
[402548938,1768704699338,-500.0,0.00017808,2]
[402548939,1768704699348,-500.0,0.00017808,2]
[402548940,1768704699358,-500.0,0.00017808,2]
[402548941,1768704699369,-500.0,0.00017808,2]
[402548942,1768704699379,-500.0,0.00017808,2]
[402548943,1768704699388,-500.0,0.00017808,2]
[402548944,1768704699397,-292.03483546,0.00017808,2]
[402548945,1768704699406,-500.0,0.00017808,2]
[402548946,1768704699415,-500.0,0.00017808,2]
[402548947,1768704699425,-667.58,0.00017808,2]
[402548948,1768704699434,-500.0,0.00017808,2]
[402548949,1768704699445,-500.0,0.00017808,2]
[402548950,1768704699456,-500.0,0.00017808,2]
[402548951,1768704699465,-511.46,0.00017808,2]
[402548952,1768704699475,-500.0,0.00017808,2]
[402548953,1768704699484,-618.15,0.00017808,2]
[402548954,1768704699493,-545.07666712,0.00017808,2]
[402548955,1768704699502,-500.0,0.00017808,2]
[402548956,1768704699512,-556.21,0.00017808,2]
[402548957,1768704699521,-541.16,0.00017808,2]
[402548958,1768704699530,-500.0,0.00017808,2]
[402548959,1768704699540,-500.0,0.00017808,2]
[402548960,1768704699550,-589.29,0.00017808,2]
[402548961,1768704699559,-500.0,0.00017808,2]
[402548962,1768704699569,-500.0,0.00017808,2]
[402548963,1768704699578,-500.0,0.00017808,2]
[402548964,1768704699588,-652.06,0.00017808,2]
[402548965,1768704699598,-553.43,0.00017808,2]
[402548966,1768704699607,-500.0,0.00017808,2]
[402548967,1768704699616,-500.0,0.00017808,2]
[402548968,1768704699625,-500.0,0.00017808,2]
[402548969,1768704699635,-500.0,0.00017808,2]
[402548970,1768704699644,-500.0,0.00017808,2]
[402548971,1768704699653,-500.0,0.00017808,2]
[402548972,1768704699663,-500.0,0.00017808,2]
[402548973,1768704699672,-500.0,0.00017808,2]
[402548974,1768704699682,-500.0,0.00017808,2]
[402548975,1768704699693,-626.42247154,0.00017808,2]
[402548976,1768704699704,-500.0,0.00017808,2]
[402548977,1768704699713,-535.32,0.00017808,2]
[402548978,1768704699722,-500.0,0.00017808,2]
[402548979,1768704699731,-500.0,0.00017808,2]
[402548980,1768704699741,-500.0,0.00017808,2]
[402548981,1768704699750,-500.0,0.00017808,2]
[402548982,1768704699759,-500.0,0.00017808,2]
[402548983,1768704699770,-944.28,0.00017808,2]
[402548984,1768704699780,-500.0,0.00017808,2]
[402548985,1768704699790,-691.68,0.00017808,2]
[402548986,1768704699799,-500.0,0.00017808,2]
[402548987,1768704699808,-500.0,0.00017808,2]
[402548988,1768704699819,-500.0,0.00017808,2]
[402548989,1768704699830,-500.0,0.00017808,2]
[402548990,1768704699840,-500.0,0.00017808,2]
[402548991,1768704699850,-500.0,0.00017808,2]
[402548992,1768704699860,-500.0,0.00017808,2]
[402548993,1768704699869,-500.0,0.00017808,2]
[402548994,1768704699879,-500.0,0.00017808,2]
[402548995,1768704699890,-539.94127399,0.00017808,2]
[402548996,1768704699903,-500.0,0.00017808,2]
[402548997,1768704699912,-500.0,0.00017808,2]
[402548998,1768704699923,-500.0,0.00017808,2]
[402548999,1768704699932,-515.05,0.00017808,2]
[402549000,1768704699943,-500.0,0.00017808,2]
[402549001,1768704699953,-500.0,0.00017808,2]
[402549002,1768704699962,-500.0,0.00017808,2]
[402549003,1768704699971,-500.0,0.00017808,2]
[402549004,1768704699981,-550.57,0.00017808,2]
[402549005,1768704699990,-13002.98701317,0.00017808,3]
[402549006,1768704700000,-500.0,0.00017808,2]
[402549007,1768704700010,-500.0,0.00017808,2]
[402549008,1768704700020,-617.18,0.00017808,2]
[402549009,1768704700029,-509.26,0.00017808,2]
[402549010,1768704700039,-500.0,0.00017808,2]
[402549011,1768704700049,-500.0,0.00017808,2]
[402549012,1768704700059,-500.0,0.00017808,2]
[402549013,1768704700068,-155.7136598,0.00017808,2]
[402549014,1768704700078,-500.0,0.00017808,2]
[402549015,1768704700088,-795.73,0.00017808,2]
[402549016,1768704700098,-500.0,0.00017808,2]
[402549017,1768704700108,-500.0,0.00017808,2]
[402549018,1768704700118,-500.0,0.00017808,2]
[402549019,1768704700127,-759.1,0.00017808,2]
[402549020,1768704700136,-500.0,0.00017808,2]
[402549021,1768704700145,-500.0,0.00017808,2]
[402549022,1768704700155,-500.0,0.00017808,2]
[402549023,1768704700165,-500.0,0.00017808,2]
[402549024,1768704700174,-500.0,0.00017808,2]
[402549025,1768704700183,-500.0,0.00017808,2]
[402549026,1768704700192,-500.0,0.00017808,2]
[402549027,1768704700202,-500.0,0.00017808,2]
[402549028,1768704700211,-570.85,0.00017808,2]
[402549029,1768704700221,-696.85,0.00017808,2]
[402549030,1768704700230,-500.0,0.00017808,2]
[402549031,1768704700239,-500.0,0.00017808,2]
[402549032,1768704700248,-500.0,0.00017808,2]
[402549033,1768704700257,-500.0,0.00017808,2]
[402549034,1768704700266,-500.0,0.00017808,2]
[402549035,1768704700277,-615.88,0.00017808,2]
[402549036,1768704700287,-500.0,0.00017808,2]
[402549037,1768704700297,-500.0,0.00017808,2]
[402549038,1768704700306,-540.82,0.00017808,2]
[402549039,1768704700315,-756.2,0.00017808,2]
[402549040,1768704700325,-500.0,0.00017808,2]
[402549041,1768704700334,-500.0,0.00017808,2]
[402549042,1768704700343,-500.0,0.00017808,2]
[402549043,1768704700352,-500.0,0.00017808,2]
[402549044,1768704700361,-518.9,0.00017808,2]
[402549045,1768704700371,-500.0,0.00017808,2]
[402549046,1768704700381,-500.0,0.00017808,2]
[402549047,1768704700390,-500.0,0.00017808,2]
[402549048,1768704700400,-500.0,0.00017808,2]
[402549049,1768704700409,-500.0,0.00017808,2]
[402549050,1768704700418,-335.24,0.00017808,2]
[402549051,1768704700427,-500.0,0.00017808,2]
[402549052,1768704700436,-517.66,0.00017808,2]
[402549053,1768704700446,-500.0,0.00017808,2]
[402549054,1768704700455,-500.0,0.00017808,2]
[402549055,1768704700464,-500.0,0.00017808,2]
[402549056,1768704700796,-500.0,0.00017808,2]
[402549057,1768704700806,-507.58,0.00017808,2]
[402549058,1768704700816,-967.46,0.00017808,2]
[402549059,1768704700825,-604.28,0.00017808,2]
[402549060,1768704700834,-500.0,0.00017808,2]
[402549061,1768704700844,-500.0,0.00017808,2]
[402549062,1768704700853,-500.0,0.00017808,2]
[402549063,1768704700863,-500.0,0.00017808,2]
[402549064,1768704700872,-500.0,0.00017808,2]
[402549065,1768704700882,-500.0,0.00017808,2]
[402549066,1768704700892,-500.0,0.00017808,2]
[402549067,1768704700902,-500.0,0.00017808,2]
[402549068,1768704700912,-613.22,0.00017808,2]
[402549069,1768704700922,-500.0,0.00017808,2]
[402549070,1768704700932,-500.0,0.00017808,2]
[402549071,1768704700941,-500.0,0.00017808,2]
[402549072,1768704700951,-599.84,0.00017808,2]
[402549073,1768704700960,-535.56,0.00017808,2]
[402549074,1768704700970,-500.0,0.00017808,2]
[402549075,1768704700979,-500.0,0.00017808,2]
[402549076,1768704700989,-500.0,0.00017808,2]
[402549077,1768704700998,-500.0,0.00017808,2]
[402549078,1768704701009,-500.0,0.00017808,2]
[402549079,1768704701019,-500.0,0.00017808,2]
[402549080,1768704701028,-743.81,0.00017808,2]
[402549081,1768704701038,-500.0,0.00017808,2]
[402549082,1768704701048,-500.0,0.00017808,2]
[402549083,1768704701057,-500.0,0.00017808,2]
[402549084,1768704701067,-500.0,0.00017808,2]
[402549085,1768704701076,-500.0,0.00017808,2]
[402549086,1768704701086,-500.0,0.00017808,2]
[402549087,1768704701095,-500.0,0.00017808,2]
[402549088,1768704701104,-1374.37,0.00017808,2]
[402549089,1768704701114,-500.0,0.00017808,2]
[402549090,1768704701123,-500.0,0.00017808,2]
[402549091,1768704701132,-500.0,0.00017808,2]
[402549092,1768704701141,-500.0,0.00017808,2]
[402549093,1768704701151,-500.0,0.00017808,2]
[402549094,1768704701160,-266.48689435,0.00017808,2]
[402549095,1768704701169,-500.0,0.00017808,2]
[402549096,1768704701178,-566.94,0.00017808,2]
[402549097,1768704701187,-500.0,0.00017808,2]
[402549098,1768704701196,-500.0,0.00017808,2]
[402549099,1768704701206,-500.0,0.00017808,2]
[402549100,1768704701215,-500.0,0.00017808,2]
[402549101,1768704701224,-500.0,0.00017808,2]
[402549102,1768704701233,-618.9,0.00017808,2]
[402549103,1768704701243,-500.0,0.00017808,2]
[402549104,1768704701252,-500.0,0.00017808,2]
[402549105,1768704701262,-500.0,0.00017808,2]
[402549106,1768704701271,-500.0,0.00017808,2]
[402549107,1768704701280,-500.0,0.00017808,2]
[402549108,1768704701290,-686.87,0.00017808,2]
[402549109,1768704701299,-500.0,0.00017808,2]
[402549110,1768704701309,-500.0,0.00017808,2]
[402549111,1768704701318,-699.56,0.00017808,2]
[402549112,1768704701327,-500.0,0.00017808,2]
[402549113,1768704701336,-567.31,0.00017808,2]
[402549114,1768704701346,-500.0,0.00017808,2]
[402549115,1768704701355,-500.0,0.00017808,2]
[402549116,1768704701364,-1980.0,0.00017808,2]
[402549117,1768704701374,-500.0,0.00017808,2]
[402549118,1768704701383,-500.0,0.00017808,2]
[402549119,1768704701394,-500.0,0.00017808,2]
[402549120,1768704701403,-549.87,0.00017808,2]
[402549121,1768704701412,-518.66,0.00017808,2]
[402549122,1768704701421,-500.0,0.00017808,2]
[402549123,1768704701431,-500.0,0.00017808,2]
[402549124,1768704701440,-1252.21,0.00017808,2]
[402549125,1768704701452,-500.0,0.00017808,2]
[402549126,1768704701462,-500.0,0.00017808,2]
[402549127,1768704701471,-500.0,0.00017808,2]
[402549128,1768704701481,-675.32,0.00017808,2]
[402549129,1768704701491,-500.0,0.00017808,2]
[402549130,1768704701501,-819.57,0.00017808,2]
[402549131,1768704701512,-500.0,0.00017808,2]
[402549132,1768704701522,-500.0,0.00017808,2]
[402549133,1768704701531,-905.68,0.00017808,2]
[402549134,1768704701541,-672.64,0.00017808,2]
[402549135,1768704701551,-500.0,0.00017808,2]
[402549136,1768704701561,-500.0,0.00017808,2]
[402549137,1768704701571,-500.0,0.00017808,2]
[402549138,1768704701580,-500.0,0.00017808,2]
[402549139,1768704701590,-500.0,0.00017808,2]
[402549140,1768704701599,-500.0,0.00017808,2]
[402549141,1768704701608,-679.24,0.00017808,2]
[402549142,1768704701618,-500.0,0.00017808,2]
[402549143,1768704701627,-500.0,0.00017808,2]
[402549144,1768704701637,-500.0,0.00017808,2]
[402549145,1768704701646,-500.0,0.00017808,2]
[402549146,1768704701656,-500.0,0.00017808,2]
[402549147,1768704701665,-500.0,0.00017808,2]
[402549148,1768704701674,-500.0,0.00017808,2]
[402549149,1768704701684,-500.0,0.00017808,2]
[402549150,1768704701696,-500.0,0.00017808,2]
[402549151,1768704701706,-784.15,0.00017808,2]
[402549152,1768704701715,-500.0,0.00017808,2]
[402549153,1768704701726,-500.0,0.00017808,2]
[402549154,1768704701736,-334.17786071,0.00017808,2]
[402549155,1768704701745,-1088.99,0.00017808,2]
[402549156,1768704701755,-873.83,0.00017808,2]
[402549157,1768704701764,-500.0,0.00017808,2]
[402549158,1768704701776,-500.0,0.00017808,2]
[402549159,1768704701787,-500.0,0.00017808,2]
[402549160,1768704701798,-500.0,0.00017808,2]
[402549161,1768704701807,-500.0,0.00017808,2]
[402549162,1768704701817,-500.0,0.00017808,2]
[402549163,1768704701828,-540.8317123,0.00017808,2]
[402549164,1768704701838,-500.0,0.00017808,2]
[402549165,1768704701848,-849.28,0.00017808,2]
[402549166,1768704701858,-554.17,0.00017808,2]
[402549167,1768704701870,-500.0,0.00017808,2]
[402549168,1768704701879,-500.0,0.00017808,2]
[402549169,1768704701890,-656.33,0.00017808,2]
[402549170,1768704701899,-500.0,0.00017808,2]
[402549171,1768704701909,-828.81,0.00017808,2]
[402549172,1768704701919,-1041.03,0.00017808,2]
[402549173,1768704701928,-500.0,0.00017808,2]
[402549174,1768704701938,-652.83,0.00017808,2]
[402549175,1768704701948,-704.21,0.00017808,2]
[402549176,1768704701958,-593.79,0.00017808,2]
[402549177,1768704701968,-1293.52,0.00017808,2]
[402549178,1768704701978,-500.0,0.00017808,2]
[402549179,1768704701988,-747.18,0.00017808,2]
[402549180,1768704701997,-500.0,0.00017808,2]
[402549181,1768704702009,-500.0,0.00017808,2]
[402549182,1768704702018,-500.0,0.00017808,2]
[402549183,1768704702028,-514.03,0.00017808,2]
[402549184,1768704702038,-642.56,0.00017808,2]
[402549185,1768704702048,-706.13,0.00017808,2]
[402549186,1768704702057,-500.0,0.00017808,2]
[402549187,1768704702067,-567.23,0.00017808,2]
[402549188,1768704702077,-500.0,0.00017808,2]
[402549189,1768704702086,-622.09,0.00017808,2]
[402549190,1768704702096,-526.47,0.00017808,2]
[402549191,1768704702107,-500.0,0.00017808,2]
[402549192,1768704702116,-500.0,0.00017808,2]
[402549193,1768704702126,-500.0,0.00017808,2]
[402549194,1768704702135,-769.53,0.00017808,2]
[402549195,1768704702145,-500.0,0.00017808,2]
[402549196,1768704702155,-365.06108589,0.00017808,2]
[402549197,1768704702166,-500.0,0.00017808,2]
[402549198,1768704702175,-169.13513952,0.00017808,2]
[402549199,1768704702185,-500.0,0.00017808,2]
[402549200,1768704702195,-614.22,0.00017808,2]
[402549201,1768704702205,-500.0,0.00017808,2]
[402549202,1768704702214,-500.0,0.00017808,2]
[402549203,1768704702224,-685.95,0.00017808,2]
[402549204,1768704702234,-500.0,0.00017808,2]
[402549205,1768704702243,-500.0,0.00017808,2]
[402549206,1768704702253,-500.0,0.00017808,2]
[402549207,1768704702263,-500.0,0.00017808,2]
[402549208,1768704702272,-538.24,0.00017808,2]
[402549209,1768704702281,-500.0,0.00017808,2]
[402549210,1768704702291,-518.15,0.00017808,2]
[402549211,1768704702301,-828.15,0.00017808,2]
[402549212,1768704702311,-522.43,0.00017808,2]
[402549213,1768704702321,-583.36,0.00017808,2]
[402549214,1768704702330,-746.7,0.00017808,2]
[402549215,1768704702338,-733.72,0.00017808,2]
[402549216,1768704702347,-932.56,0.00017808,2]
[402549217,1768704702357,-500.0,0.00017808,2]
[402549218,1768704702366,-500.0,0.00017808,2]
[402549219,1768704702375,-500.0,0.00017808,2]
[402549220,1768704702384,-937.7,0.00017808,2]
[402549221,1768704702394,-500.0,0.00017808,2]
[402549222,1768704702403,-500.0,0.00017808,2]
[402549223,1768704702412,-711.37,0.00017808,2]
[402549224,1768704702422,-500.0,0.00017808,2]
[402549225,1768704702431,-566.38,0.00017808,2]
[402549226,1768704702440,-500.0,0.00017808,2]
[402549227,1768704702450,-500.0,0.00017808,2]
[402549228,1768704702459,-500.0,0.00017808,2]
[402549229,1768704702469,-598.62,0.00017808,2]
[402549230,1768704702479,-500.0,0.00017808,2]
[402549231,1768704702488,-636.73,0.00017808,2]
[402549232,1768704702498,-500.0,0.00017808,2]
[402549233,1768704702508,-500.0,0.00017808,2]
[402549234,1768704702518,-500.0,0.00017808,2]
[402549235,1768704702528,-976.47,0.00017808,2]
[402549236,1768704702537,-500.0,0.00017808,2]
[402549237,1768704702547,-500.0,0.00017808,2]
[402549238,1768704702556,-978.58,0.00017808,2]
[402549239,1768704702565,-500.0,0.00017808,2]
[402549240,1768704702575,-396.81045313,0.00017808,2]
[402549241,1768704702584,-500.0,0.00017808,2]
[402549242,1768704702594,-500.0,0.00017808,2]
[402549243,1768704702603,-500.0,0.00017808,2]
[402549244,1768704702613,-500.0,0.00017808,2]
[402549245,1768704702622,-500.0,0.00017808,2]
[402549246,1768704702631,-500.0,0.00017808,2]
[402549247,1768704702640,-500.0,0.00017808,2]
[402549248,1768704702649,-568.1,0.00017808,2]
[402549249,1768704702659,-500.0,0.00017808,2]
[402549250,1768704702668,-500.0,0.00017808,2]
[402549251,1768704702677,-500.0,0.00017808,2]
[402549252,1768704702687,-500.0,0.00017808,2]
[402549253,1768704702699,-500.0,0.00017808,2]
[402549254,1768704702708,-500.0,0.00017808,2]
[402549255,1768704702717,-503.39,0.00017808,2]
[402549256,1768704702726,-500.0,0.00017808,2]
[402549257,1768704702736,-768.5,0.00017808,2]
[402549258,1768704702745,-500.0,0.00017808,2]
[402549259,1768704702755,-500.0,0.00017808,2]
[402549260,1768704702766,-639.7,0.00017808,2]
[402549261,1768704702775,-500.0,0.00017808,2]
[402549262,1768704702784,-744.82,0.00017808,2]
[402549263,1768704702793,-550.76,0.00017808,2]
[402549264,1768704702803,-500.0,0.00017808,2]
[402549265,1768704702813,-500.0,0.00017808,2]
[402549266,1768704702823,-578.75,0.00017808,2]
[402549267,1768704702832,-500.0,0.00017808,2]
[402549268,1768704702842,-500.0,0.00017808,2]
[402549269,1768704702852,-500.0,0.00017808,2]
[402549270,1768704702861,-500.0,0.00017808,2]
[402549271,1768704702872,-500.0,0.00017808,2]
[402549272,1768704702881,-500.0,0.00017808,2]
[402549273,1768704702890,-500.0,0.00017808,2]
[402549274,1768704702900,-500.0,0.00017808,2]
[402549275,1768704702909,-523.82,0.00017808,2]
[402549276,1768704702919,-500.0,0.00017808,2]
[402549277,1768704702928,-511.36,0.00017808,2]
[402549278,1768704702939,-500.0,0.00017808,2]
[402549279,1768704702949,-500.0,0.00017808,2]
[402549280,1768704702958,-500.0,0.00017808,2]
[402549281,1768704702968,-500.0,0.00017808,2]
[402549282,1768704702977,-500.0,0.00017808,2]
[402549283,1768704702986,-511.15,0.00017808,2]
[402549284,1768704702995,-500.0,0.00017808,2]
[402549285,1768704703005,-304.77625373,0.00017808,2]
[402549286,1768704703014,-500.0,0.00017808,2]
[402549287,1768704703024,-500.0,0.00017808,2]
[402549288,1768704703033,-653.96,0.00017808,2]
[402549289,1768704703043,-500.0,0.00017808,2]
[402549290,1768704703052,-519.76,0.00017808,2]
[402549291,1768704703063,-500.0,0.00017808,2]
[402549292,1768704703073,-583.4,0.00017808,2]
[402549293,1768704703082,-500.0,0.00017808,2]
[402549294,1768704703091,-500.0,0.00017808,2]
[402549295,1768704703100,-500.0,0.00017808,2]
[402549296,1768704703196,-984.61,0.00017808,2]
[402549297,1768704703207,-527.66,0.00017808,2]
[402549298,1768704703218,-500.0,0.00017808,2]
[402549299,1768704703228,-8020.14,0.00017808,2]
[402549300,1768704703239,-500.0,0.00017808,2]
[402549301,1768704703249,-520.18,0.00017808,2]
[402549302,1768704703259,-500.0,0.00017808,2]
[402549303,1768704703269,-811.1,0.00017808,2]
[402549304,1768704703279,-500.0,0.00017808,2]
[402549305,1768704703288,-243.10804439,0.00017808,2]
[402549306,1768704703298,-500.0,0.00017808,2]
[402549307,1768704703308,-375.15072105,0.00017808,2]
[402549308,1768704703318,-1000.0,0.00017808,2]
[402549309,1768704703328,-163.1649928,0.00017808,2]
[402549310,1768704703339,-1000.0,0.00017821,2]
[402549311,1768704703348,-1981.0,0.00017842,2]
[402549312,1768704703358,-5800.0,0.00017858,2]
[402549313,1768704703366,-823.0,0.00017862,2]
[402549314,1768704703376,-500.0,0.00017863,2]
[402549315,1768704703385,-1980.0,0.00017863,2]
[402549316,1768704703395,-375.15072105,0.00017863,2]
[402549317,1768704703405,-5800.0,0.00017866,2]
[402549318,1768704703415,-1000.0,0.00017866,2]
[402549319,1768704703425,-500.62039903,0.00017868,2]
[402549320,1768704703436,-525.58193812,0.00017868,2]
[402549321,1768704703446,-1001.2897294,0.00017868,2]
[402549322,1768704703457,-1500.0,0.00017868,2]
[402549323,1768704703467,-501.46068575,0.00017868,2]
[402549324,1768704703478,-1500.0,0.00017868,2]
[402549325,1768704703489,-1500.0,0.00017868,2]
[402549326,1768704703499,-1511.52231244,0.00017868,2]
[402549327,1768704703509,-1500.0,0.00017868,2]
[402549328,1768704703519,-1500.0,0.00017868,2]
[402549329,1768704703529,-1500.0,0.00017868,2]
[402549330,1768704703539,-1500.0,0.00017868,2]
[402549331,1768704703549,-1501.59673389,0.00017868,2]
[402549332,1768704703558,-5800.0,0.00017874,2]
[402549333,1768704703569,-2503.12401269,0.0001788,2]
[402549334,1768704703579,-5800.0,0.00017883,2]
[402549335,1768704703588,-761.65,0.00017886,2]
[402549336,1768704703598,-5800.0,0.00017891,2]
[402549337,1768704703609,-5800.0,0.000179,2]
[402549338,1768704703618,-187.78971762,0.000179,2]
[402549339,1768704703628,-1808.0,0.000179,6]
[402549340,1768704703638,-276.5178236,0.000179,2]
[402549341,1768704703648,-3032.55770297,0.000179,2]
[402549342,1768704703657,-159.81012096,0.000179,2]
[402549343,1768704703668,-159.81012084,0.000179,2]
[402549344,1768704703678,-159.81012084,0.000179,2]
[402549345,1768704703688,-2372.8612874,0.000179,2]
[402549346,1768704703703,-425.03740356,0.000179,2]
[402549347,1768704703713,-159.81012084,0.000179,2]
[402549348,1768704703723,-491.33634829,0.000179,2]
[402549349,1768704703735,-1125.3,0.00017902,2]
[402549350,1768704703745,-166.66,0.00017903,2]
[402549351,1768704703755,-1000.0,0.00017904,2]
[402549352,1768704703766,-500.0,0.00017918,2]
[402549353,1768704703777,-1980.0,0.00017918,2]
[402549354,1768704703788,-375.15072105,0.00017945,2]
[402549355,1768704703797,-400.0,0.0001797,2]
[402549356,1768704703807,-400.0,0.0001797,2]
[402549357,1768704703817,-661.50728786,0.0001797,2]
[402549358,1768704703827,-224.71091954,0.00017972,2]
[402549359,1768704703837,-1980.0,0.00017972,2]
[402549360,1768704703847,-164.02647875,0.00017973,2]
[402549361,1768704703857,-1537.58038592,0.0001798,2]
[402549362,1768704703867,-1030.88518235,0.0001798,2]
[402549363,1768704703877,-152.18045294,0.00017989,2]
[402549364,1768704703888,-261.35951101,0.00017999,2]
[402549365,1768704703899,-1000.0,0.00017999,2]
[402549366,1768704703911,-1000.0,0.00017999,2]
[402549367,1768704703921,-1000.0,0.00017999,2]
[402549368,1768704703932,-1000.0,0.00017999,2]
[402549369,1768704703943,-1000.0,0.00017999,2]
[402549370,1768704703954,-1000.0,0.00017999,2]
[402549371,1768704703965,-1000.0,0.00017999,2]
[402549372,1768704703976,-1000.0,0.00017999,2]
[402549373,1768704703988,-1000.0,0.00017999,2]
[402549374,1768704704000,-1000.0,0.00017999,2]
[402549375,1768704704013,-986.8,0.00017999,2]
[402549376,1768704704027,-1700.000001,0.00018,10]
[402549377,1768704704039,-134045.20059957,0.00018,2]
[402549378,1768704704610,-500.0,0.00016986,2]
[402549379,1768704704619,-541.35437953,0.00018,2]
[402549380,1768704705305,-500.0,0.00014654,2]
[402549381,1768704705315,-500.0,0.00014654,2]
[402549382,1768704705323,-500.0,0.00014654,2]
[402549383,1768704705332,-500.0,0.00014654,2]
[402549384,1768704705341,-294.93495063,0.00014654,2]
[402549385,1768704705353,-205.06504937,0.00014654,2]
[402549386,1768704705362,-169.30485998,0.00014654,2]
[402549387,1768704705563,-16.9686998,0.00014654,2]
[402549388,1768704705594,-307.96554937,0.00014654,2]
[402549389,1768704706187,-5.76089085,0.00014654,2]
[402549390,1768704706198,-531.97047146,0.00014654,2]
[402549391,1768704706209,-450.19149084,0.00014654,2]
[402549392,1768704706226,-49.80850916,0.00014654,2]
[402549393,1768704706235,-262.1462178,0.00014654,2]
[402549394,1768704706246,-237.8537822,0.00014654,2]
[402549395,1768704706255,-500.0,0.00014654,2]
[402549396,1768704706265,-500.0,0.00014654,2]